Cogmind - Beta 11 @@@ ROGUE MODE // 2022.04.07 @ 10:42:40 Player: Wisp Result: Destroyed by C-17 Slicer with Concussive RPG Performance ------------- Evolutions (2) 1000 Regions Visited (3) 600 Robots Destroyed (12) 60 Value Destroyed (458) 458 Prototype IDs (0) 0 Alien Tech Used (0) 0 Bonus (0) 0 TOTAL SCORE: 2118 Bonus ------- None Cogmind --------- Core Integrity 0/550 Matter 300/300 Energy 98/100 System Corruption 0% Temperature Cool (0) Movement Core (50) Location -8/Materials Parts ------- > --- POWER (1) -------- (None) > --- PROPULSION (4) --- (None) > --- UTILITY (4) ------ (None) > --- WEAPON (2) ------- (None) > --- INVENTORY (5) ---- Flight Unit Improved Datajack Peak State ------------ > --- POWER ------------ Light Deuterium Engine > --- PROPULSION ------- Armored Wheel Flight Unit Flight Unit Flight Unit > --- UTILITY ---------- Advanced Weight Redist. System Trap Scanner Sensor Array Seismic Detector > --- WEAPON ----------- Particle Cannon Ion Cannon > --- INVENTORY -------- Armored Wheel Armored Wheel Armored Wheel Particle Cannon Particle Cannon [Rating: 22] Favorites ----------- Power Ion Engine Engine Ion Engine Propulsion Armored Wheel Leg Aluminum Leg Wheel Armored Wheel Flight Unit Flight Unit Utility Seismic Detector Device Seismic Detector Storage Medium Storage Unit Weapon Particle Cannon Energy Gun EM Pulse Gun Energy Cannon Particle Cannon Special Melee Weapon Improved Datajack Build | -11 -10 -9 -8 ------- Run | Scr Mat Mat Mat Slots Evolved 4 | . . 2 2 Power . | . . . . Propulsion 2 | . . 2 . Utility 2 | . . . 2 Weapon . | . . . . Parts Attached 32 | 8 5 4 15 Power 4 | 2 . 1 1 Engine 4 | 2 . 1 1 Core . | . . . . Reactor . | . . . . Propulsion 12 | 2 2 2 6 Treads . | . . . . Leg 2 | 2 . . . Wheel 7 | . 2 2 3 Hover . | . . . . Flight 3 | . . . 3 Utility 6 | 2 1 1 2 Device 4 | 1 . 1 2 Storage 2 | 1 1 . . Processor . | . . . . Hackware . | . . . . Protection . | . . . . Artifact . | . . . . Weapon 10 | 2 2 . 6 Energy Gun 2 | 2 . . . Energy Cannon 5 | . 2 . 3 Ballistic Gun . | . . . . Ballistic Cannon . | . . . . Launcher . | . . . . Special Weapon . | . . . . Impact Weapon . | . . . . Slashing Weapon . | . . . . Piercing Weapon . | . . . . Special Melee Weapon 3 | . . . 3 Unidentified Prototypes . | . . . . Parts Lost 13 | . . . 13 Power 1 | . . . 1 Propulsion 5 | . . . 5 Utility 4 | . . . 4 Weapon 3 | . . . 3 Highest Loss Streak 7 | . . . 7 To Critical Strikes . | . . . . Average Slot Usage (%) 88 | . 100 100 75 Engine 9 | . 14 11 6 Wheel 28 | . 25 44 15 Flight 8 | . . . 17 Device 16 | . 14 14 19 Storage 4 | . 14 7 . Energy Cannon 18 | . 21 22 15 Naked Turns 5 | . . . 5 Heaviest Build 24 | 14 24 24 19 Greatest Support 48 | 20 24 48 48 Greatest Overweight (x) 1 | . 1 . . Average Overweight (x) . | . . . . Largest Inventory Capacity 10 | 8 10 10 5 Average Capacity 6 | 7 9 8 5 Most Carried 10 | 4 10 9 5 Average Carried 5 | 1 7 7 4 Final Capacity 10 | 8 10 5 5 Final Carried 10 | 2 10 5 2 Class Distribution -------------------- 100% | Mutant Dominant Class ---------------- Mutant | -10/Materials Mutant | -9/Materials Mutant | -8/Materials Resources | -11 -10 -9 -8 ----------- Run | Scr Mat Mat Mat Matter Collected 409 | 174 . 180 55 Remotely . | . . . . Salvage Created 497 | 16 5 267 209 Parts 24 | 4 . 12 8 Haulers Intercepted . | . . . . Recyclers Shooed 1 | 1 . . . Parts Field Recycled . | . . . . Retrieved Matter . | . . . . Parts Self-Destructed . | . . . . Prevented . | . . . . Kills | -11 -10 -9 -8 ------- Run | Scr Mat Mat Mat Combat Hostiles Destroyed 10 | . . 6 4 Cannons 10 | . . 6 4 Classes Destroyed 6 | 1 . 4 1 Tunneler 1 | 1 . . . Watcher 1 | . . 1 . Grunt 7 | . . 4 3 Brawler 1 | . . . 1 Duelist 1 | . . 1 . Sentry 1 | . . 1 . Best Kill Streak 3 | 1 . 3 3 Combat Bots Only 3 | . . 3 3 Max Kills in Single Turn 1 | 1 . 1 1 Gunslinging . | . . . . Exploded . | . . . . Melee . | . . . . Uniques/NPCs Destroyed . | . . . . Combat | -11 -10 -9 -8 -------- Run | Scr Mat Mat Mat Damage Taken 1632 | . . 175 1457 Core 612 | . . 56 556 Absorbed by Shields . | . . . . Core Remaining (%) 95 | 100 100 86 . Volleys Fired 33 | 1 3 13 16 Largest 2 | 2 2 2 2 Hottest 136 | 80 136 136 136 Shots Fired 66 | 2 6 26 32 Gun 2 | 2 . . . Cannon 64 | . 6 26 32 Launcher . | . . . . Special . | . . . . Kinetic . | . . . . Thermal 65 | 1 6 26 32 Explosive . | . . . . Electromagnetic 1 | 1 . . . Robot Hit Streak 11 | 1 2 8 11 Robot Miss Streak 4 | . 4 3 2 Penetration Max . | . . . . Secondary Targets . | . . . . Shots Hit Robots 47 | 1 2 18 26 Core Hits 19 | 2 . 8 9 Critical Kills . | . . . . Critical Parts Destroyed . | . . . . Critical Strikes . | . . . . Melee Attacks 3 | . . . 3 Impact . | . . . . Slashing . | . . . . Piercing . | . . . . Sneak Attacks 1 | . . . 1 Combat Hostiles . | . . . . Follow-up Attacks . | . . . . Damage Inflicted 1004 | 19 41 412 532 Guns 12 | 12 . . . Cannons 970 | . 41 412 517 Explosions . | . . . . Melee . | . . . . Ramming 22 | 7 . . 15 Kinetic . | . . . . Thermal 970 | . 41 412 517 Explosive . | . . . . Electromagnetic 12 | 12 . . . Impact . | . . . . Slashing . | . . . . Piercing . | . . . . Highest Corruption . | . . . . Average Corruption . | . . . . Corruption Purged . | . . . . Corruption Blocked . | . . . . Overload Shots . | . . . . Overflow Damage . | . . . . Projectiles . | . . . . Explosions . | . . . . Melee . | . . . . Knockbacks . | . . . . Impact . | . . . . Kinetic . | . . . . Secondary . | . . . . Self-Inflicted Damage 5 | . . . 5 Shots . | . . . . Rammed 9 | . . . 9 Targets Rammed 14 | 5 . . 9 Kicked 5 | 5 . . . Crushed . | . . . . Highest Temperature 383 | 18 225 383 267 Average Temperature 138 | 12 137 158 128 Received Heat Transfer 723 | . . 48 675 Effects 2 | . . 2 . Energy Bleed 1 | . . 1 . Short Circuit 1 | . . 1 . Siege Activations . | . . . . Robots Corrupted . | . . . . Combat Hostiles . | . . . . Parts Fried . | . . . . Impact Corruptions . | . . . . Robots Melted . | . . . . Combat Hostiles . | . . . . Parts Melted 3 | . . 3 . Heat Transferred 1739 | . 74 740 925 Parts Sabotaged . | . . . . Parts Stolen . | . . . . Parts Stripped . | . . . . Power Chain Reactions . | . . . . Missiles Intercepted . | . . . . Alert | -11 -10 -9 -8 ------- Run | Scr Mat Mat Mat Peak Influence 298 | 5 33 298 170 Initial 50 | . 3 13 50 Average 90 | 1 5 138 80 Maximum Alert Level 1 | . . 1 . Low Security (%) 88 | 100 100 70 100 Level 1 11 | . . 29 . Level 2 . | . . . . Level 3 . | . . . . Level 4 . | . . . . Level 5 . | . . . . High Security . | . . . . Max Security . | . . . . Squads Dispatched 2 | . . 1 1 Investigation 1 | . . 1 . Extermination . | . . . . Reinforcement 1 | . . . 1 Assault . | . . . . Garrison . | . . . . Intercept . | . . . . Searches Triggered . | . . . . Construction Impeded . | . . . . Haulers Reinforced . | . . . . Active Scanning Responses . | . . . . Cargo Convoy Interrupts . | . . . . Stealth | -11 -10 -9 -8 --------- Run | Scr Mat Mat Mat Distress Signals 2 | . . . 2 Communications Jammed . | . . . . Distress Signals . | . . . . Times Spotted 37 | . 1 9 27 Peak Tracking Total 18 | . 1 5 18 Tactical Retreats 5 | . . 2 3 Traps | -11 -10 -9 -8 ------- Run | Scr Mat Mat Mat Traps Triggered 1 | . . . 1 Indirectly . | . . . . Trap Hack Attempts 9 | . . . 9 Triggered . | . . . . Disarmed . | . . . . Reprogrammed . | . . . . Reused . | . . . . Traps Extracted . | . . . . Installed . | . . . . Triggered . | . . . . Machines | -11 -10 -9 -8 ---------- Run | Scr Mat Mat Mat Machines Disabled 3 | . 2 . 1 Max in Single Turn 1 | . 1 . 1 Machines Sabotaged . | . . . . Garrisons Compromised . | . . . . Overloaded Fab Kills . | . . . . Hacking | -11 -10 -9 -8 --------- Run | Scr Mat Mat Mat Machines Accessed 9 | . 3 4 2 Terminals 8 | . 3 4 1 Fabricators . | . . . . Repair Stations 1 | . . . 1 Recycling Units . | . . . . Scanalyzers . | . . . . Garrison Access . | . . . . Total Hacks 19 | . 5 9 5 Successful 11 | . 1 7 3 Failed 8 | . 4 2 2 Catastrophic 2 | . 1 1 . Database Lockouts . | . . . . Manual 6 | . 6 . . Terminals 16 | . 5 9 2 Fabricators . | . . . . Repair Stations 3 | . . . 3 Recycling Units . | . . . . Scanalyzers . | . . . . Garrison Access . | . . . . Terminal Hacks 9 | . 1 7 1 Record 1 | . . 1 . Locate Traps 2 | . . 2 . Patrol Status 1 | . . 1 . Registered Prototypes 1 | . . 1 . Zone Layout 4 | . 1 2 1 Fabricator Hacks . | . . . . Repair Station Hacks 2 | . . . 2 Scan Component 1 | . . . 1 Repair 1 | . . . 1 Recycling Unit Hacks . | . . . . Scanalyzer . | . . . . Garrison Access Hacks . | . . . . Unauthorized Hacks . | . . . . Terminals . | . . . . Fabricators . | . . . . Repair Stations . | . . . . Recycling Units . | . . . . Scanalyzers . | . . . . Garrison Access . | . . . . Data Cores Recovered . | . . . . Used . | . . . . Hacking Detections 8 | . 3 4 1 Full Trace Events 1 | . . 1 . Feedback Events . | . . . . Feedback Blocked . | . . . . Robot Schematics Acquired . | . . . . Robots Built . | . . . . Authchips . | . . . . Time . | . . . . Total Robot Build Rating . | . . . . Part Schematics Acquired . | . . . . Parts Built . | . . . . Authchips . | . . . . Time . | . . . . Total Part Build Rating . | . . . . Parts Repaired 1 | . . . 1 Time 44 | . . . 44 Parts Recycled . | . . . . Recycled Matter . | . . . . Retrieved Matter . | . . . . Retrieved Components . | . . . . Parts Scanalyzed . | . . . . Part Schematics Acquired . | . . . . Parts Damaged . | . . . . Bothacking | -11 -10 -9 -8 ------------ Run | Scr Mat Mat Mat Used RIF Installer . | . . . . Robots Hacked 2 | . . . 2 Non-combat 1 | . . . 1 Combat 1 | . . . 1 Robot Hacks Applied 2 | . . . 2 parse_system 2 | . . . 2 Relay Couplers Released . | . . . . Fabnet Peak Effective % . | . . . . Robots Rewired . | . . . . Allies Hacked . | . . . . Hacks Repelled . | . . . . Allies | -11 -10 -9 -8 -------- Run | Scr Mat Mat Mat Total Allies . | . . . . Largest Group . | . . . . Highest-Rated Group . | . . . . Highest-Rated Ally . | . . . . Total Orders . | . . . . Ally Attacks . | . . . . Total Damage . | . . . . Kills . | . . . . Allies Corrupted . | . . . . Allies Melted . | . . . . Intel | -11 -10 -9 -8 ------- Run | Scr Mat Mat Mat Robot Analysis Total . | . . . . Derelict Logs Recovered . | . . . . Drone Launches . | . . . . Drone Recoveries . | . . . . Exploration | -11 -10 -9 -8 ------------- Run | Scr Mat Mat Mat Turns Passed 1210 | 65 128 470 547 Spaces Moved 929 | 39 107 387 396 Core 18 | 7 . . 11 Treads . | . . . . Legs 36 | 32 4 . . Wheels 618 | . 103 387 128 Hover . | . . . . Flight 257 | . . . 257 Fastest Speed 39 | 50 90 90 39 Average Speed 76 | 107 91 90 56 Slowest Speed 120 | 120 120 90 90 Overloaded Moves . | . . . . Propulsion Burnouts . | . . . . Robots Hopped . | . . . . Cave-ins Triggered . | . . . . Exploration Rate (%) 22 | 3 22 33 33 Regions Visited 3 Branch Regions . Pre-discovered Areas . | . . . . Known Exits Taken . | . . . . Unknown Exits Taken 3 | 1 1 1 . Scrap Searched . | . . . . Spaces Dug . | . . . . Terrain Destroyed . | . . . . Melee . | . . . . Projectile . | . . . . AOE . | . . . . Terrain Rammed . | . . . . Walls Destroyed . | . . . . Machines Disabled . | . . . . Actions | -11 -10 -9 -8 --------- Run | Scr Mat Mat Mat Total 1359 | 56 133 484 686 Wait 309 | . . 76 233 Move 926 | 38 106 386 396 Hop . | . . . . Pick Up 15 | 3 11 . 1 Fast Attach 15 | 6 4 1 4 Attach 6 | 1 . 2 3 Detach . | . . . . Swap 11 | 1 1 1 8 Drop 18 | 1 8 5 4 Fire 33 | 1 3 13 16 Melee 3 | . . . 3 Ram 9 | . . . 9 Kick 5 | 5 . . . Crush . | . . . . Escape Stasis . | . . . . Rewire . | . . . . Trap 9 | . . . 9 Miscellaneous . | . . . . Route ------- -11/Scrapyard -10/Materials -9/Materials -8/Materials (discovered 1 exit: [*Fac]) History --------- Turn | Location | Event 9 | -11/Scrapyard | Discovered new exit (range 15) 66 | -11/Scrapyard | Entered Materials 138 | -10/Materials | Discovered new exit (range 17) 194 | -10/Materials | Entered another Materials area 194 | -9/Materials | Evolved 2 slots: Propulsion x2 311 | -9/Materials | Build established: Mutant 645 | -9/Materials | Discovered new exit (range 6) 664 | -9/Materials | Entered another Materials area 664 | -8/Materials | Evolved 2 slots: Utility x2 735 | -8/Materials | Repaired Broken Arm. Wheel 1087 | -8/Materials | Lost 7 parts (1p2n4u) 1160 | -8/Materials | Core integrity fell below 50% 1176 | -8/Materials | Core integrity fell below 20% 1200 | -8/Materials | Lost 4 parts (2n2w) 1211 | -8/Materials | Discovered new exit (range 9) 1211 | -8/Materials | Destroyed by C-17 Slicer with Concussive RPG Last Messages --------------- 01165_ Particle Cannon destroyed. 01165_ Arm. Wheel destroyed. 01166_ Slammed into L-31 Rogue. 01169_ Arm. Wheel destroyed. 01169_ Critical hit (Burn: +37). 01171_ Triggered Blade Trap. 01171_ Massive razor-sharp blades shoot up from within the floor. 01175_ Attempting to reprogram Blade Trap. 01187_ Sneak attack on R-06 Scavenger. 01187_ Jacked R-06 Scavenger... >>parse_system Reading system data... 01202_ Attempting to reprogram EMP Trap. 01205_ Arm. Wheel destroyed. 01206_ Attempting to reprogram EMP Trap. 01206_ Imp. Datajack destroyed. 01208_ T-07 Excavator is excavating. 01211_ ALERT: Suspicious intruders detected, dispatching Cutter reinforcements to area. 01211_ EXIT=FOUND Map ----- +----------------------------------------------------+ | | | | | | | | | | | | | | | | | | | | | | | ??????????????????????????????????????????????##?? | | ???????????????????????????????????????????#### ## | | ???????????????????????????????????????????# T | | ???????????????????????????????????????????# " | | ????????????????????##?????????????????????# " | | ????????????????????# ????????????????????# " | | ????????????????????#cH????????????????????# | | ????????????????????#c ??????????????#####?# !! | | ?????????????######## ?????????????#"""#?# ! | | ?????????????? ?????????????#"T"### | | ?????????????? ##############" "#T####### | | ????????????????? r "" | | ????????????????????# ^ "T | | ????????????????????# a | | ????????????????????#a @ = | | ???????????????????#t ########## | | ???????????????????## ###### ??#^ """"""" | | ????????????????????# ?# ?# """"""" | | ????????????????????# ?# T?# """"""" | | ???????????????????# ??# # """"""" | | ???????????????????# ??# =!! # """"""" | | ???????????????????t ???# =!! + | | ??????????????????## ???# =!! # | | ???????????????????# ????# = # | | ???????????????????##????# ?# #"T"####### | | ?????????????????????????# =?# #####?????? | | ?????????????????????????#######??# #?????????? | | ??????????????????????????????????# #?????????? | | ??????????????????????????????????# #?????????? | | ??????????????????????????????????# #?????????? | | ??????????????????????????????????# ##????????? | | ?????????????????????????########## #????#???? | | ?????????????????????? #?? #???? | | ?????????????????????? # #???? | | ?????????????????????? + #???? | | ??????????????????????? ############ #^ #???? | | ??????????????????????????###???????# # #???? | | ??????????????????????????# ????## ####?#???? | | ??????????????????????????# ??# ####### | +----------------------------------------------------+ Best States ------------- Heat Dissipation 31 Energy Generation 14 Energy Capacity 250 Matter Stores 300 Matter Capacity 300 Sight Range 16 Robot Scan Range 14 Terrain Scan Density 10 Additional Mass Support 9 Evasion (%) 62 Item Schematics ----------------- None Robot Schematics ------------------ None Fabricated ------------ Nothing Alien Tech Used ----------------- None Achievements -------------- None Challenges ------------ None Game ------ Seed OmegaGravitonShearcannon Manual? 0 Play Time 00:24:42 Cumulative 35.0 hours Start 2022.04.07 @ 10:16:45 End 2022.04.07 @ 10:42:40 Sessions 1 Manual Loads 0 Difficulty Rogue Special Mode None Game No. 23 Rogue 23 Adventurer 0 Explorer 0 Win Type - Total 0 Types 0/0/0/0/0/0/0/0/0 Lore% 24 Gallery% 33 Achievement% 24 Wizard Run 0 Options --------- ASCII 0 Keyboard 0 Movement Numpad Keybinds 0 Fullscreen 1 Font 18/SmallcapsGlow Map View 76x50 Tactical HUD 1 Map Filters NONE Filters NONE Steam 1 RUN: 05fc0254-0052-4af6-918a-accd82d7dff9